bitfinex/quotes_SOLUSD_20260305
["timestamp","ask_amount","ask_price","bid_price","bid_amount"]
[1772725340679,39.07165741,89.579,89.532,3.66379706]
[1772725341173,11.16333069,89.579,89.532,3.66379706]
[1772725342857,11.16333069,89.579,89.534,3.66379706]
[1772725343351,11.16208463,89.589,89.534,3.66379706]
[1772725343565,11.16208463,89.589,89.536,3.66379706]
[1772725345074,11.16208463,89.589,89.538,3.66379706]
[1772725345279,11.16083884,89.599,89.538,3.66379706]
[1772725345479,39.06293596,89.599,89.538,3.66379706]
[1772725345670,11.2840568,89.59,89.538,3.66379706]
[1772725346274,39.06293596,89.599,89.538,3.66379706]
[1772725346860,11.2840568,89.59,89.538,3.66379706]
[1772725347469,11.16208463,89.589,89.54,3.66379706]
[1772725348780,39.0672962,89.589,89.54,3.66379706]
[1772725349081,11.2840568,89.57,89.539,11.16831771]
[1772725349383,0.28432314,89.598,89.542,3.66379706]
[1772725349686,11.2840568,89.59,89.542,3.66379706]
[1772725350982,27.90219543,89.599,89.542,3.66379706]
[1772725352296,39.06303427,89.599,89.544,3.66379706]
[1772725353971,11.2840568,89.59,89.544,3.66379706]
[1772725354494,11.2840568,89.59,89.432,24.80429513]
[1772725354495,11.15984242,89.607,89.546,3.66379706]
[1772725355486,39.05944847,89.607,89.546,3.66379706]
[1772725355693,4.20982189,89.6,89.546,3.66379706]
[1772725356012,39.05944847,89.607,89.546,3.66379706]
[1772725356290,11.15984242,89.607,89.546,3.66379706]
[1772725356970,3.69383402,89.63,89.539,44.67305489]
[1772725356971,4.20982189,89.62,89.549,3.66379706]
[1772725357173,11.15910946,89.613,89.555,3.66379706]
[1772725357486,7.90365591,89.64,89.555,3.66379706]
[1772725357487,11.15984242,89.607,89.555,3.66379706]
[1772725357683,11.15905497,89.614,89.555,3.66379706]
[1772725357987,32.09920107,89.64,89.564,0.28432314]
[1772725358188,32.09920107,89.64,89.575,3.66379706]
[1772725358774,27.88937918,89.64,89.575,3.66379706]
[1772725358992,3.79383402,89.66,89.566,0.28432314]
[1772725358993,11.15473853,89.648,89.58,3.66379706]
[1772725359195,11.15473853,89.648,89.582,3.66379706]
[1772725359490,11.15473853,89.648,89.586,3.66379706]
[1772725359788,4.20982189,89.64,89.586,3.66379706]
[1772725360389,39.04158486,89.648,89.586,3.66379706]
[1772725360594,4.20982189,89.62,89.576,39.07296596]
[1772725360771,4.20982189,89.62,89.577,3.66379706]
[1772725360970,11.15834811,89.619,89.579,3.66379706]
[1772725361572,4.20982189,89.68,89.579,3.66379706]
[1772725361573,4.20982189,89.64,89.579,3.66379706]
[1772725361779,11.15598295,89.638,89.579,3.66379706]
[1772725362293,4.30982189,89.65,89.581,3.66379706]
[1772725362590,4.30982189,89.65,89.578,94.88937015]
[1772725362591,11.15473853,89.648,89.595,3.66379706]
[1772725362976,0.1,89.65,89.597,3.66379706]
[1772725365191,11.36581624,89.65,89.599,3.66379706]
[1772725365402,11.26581624,89.64,89.599,3.66379706]
[1772725365589,11.26581624,89.64,89.566,1.11649509]
[1772725365590,11.26581624,89.62,89.549,3.66379706]
[1772725365904,11.26581624,89.62,89.548,55.83597623]
[1772725365905,11.26581624,89.62,89.554,3.66379706]
[1772725366600,11.26581624,89.62,89.556,3.66379706]
[1772725366802,11.26581624,89.61,89.556,3.66379706]
[1772725367123,11.26581624,89.62,89.556,3.66379706]
[1772725367781,11.26581624,89.62,89.558,3.66379706]
[1772725368891,11.26581624,89.61,89.56,3.66379706]
[1772725369075,27.89587029,89.619,89.56,3.66379706]
[1772725369276,11.26581624,89.62,89.56,3.66379706]
[1772725370094,11.26581624,89.61,89.56,3.66379706]
[1772725370402,11.26581624,89.6,89.56,3.66379706]
[1772725370775,11.16083884,89.599,89.561,11.1655743]
[1772725371492,11.16083884,89.599,89.562,3.66379706]
[1772725371695,39.06293596,89.599,89.562,3.66379706]
[1772725372084,11.26581624,89.59,89.54,3.66379706]
[1772725372289,11.26581624,89.58,89.541,3.66379706]
[1772725372490,11.26581624,89.57,89.514,11.17143687]
[1772725372795,0.28432314,89.595,89.518,3.66379706]
[1772725372996,11.26581624,89.57,89.52,3.66379706]
[1772725374894,39.08038275,89.559,89.51,3.66379706]
[1772725375492,11.16582364,89.559,89.51,3.66379706]
[1772725376082,39.08038275,89.559,89.51,3.66379706]
[1772725377793,11.28993688,89.57,89.512,3.66379706]
[1772725377987,11.28993688,89.56,89.512,3.66379706]
[1772725378622,11.28993688,89.57,89.513,0.28432314]
[1772725378805,39.07209359,89.578,89.516,3.66379706]
[1772725378978,11.28993688,89.57,89.516,3.66379706]
[1772725379904,11.28993688,89.57,89.511,39.10133949]
[1772725379905,11.28993688,89.55,89.518,3.66379706]
[1772725380109,11.28993688,89.56,89.518,3.66379706]
[1772725380606,39.07601959,89.569,89.518,3.66379706]
[1772725380905,11.16457702,89.569,89.518,3.66379706]
[1772725381086,39.07601959,89.569,89.518,3.66379706]
[1772725381607,11.28993688,89.56,89.518,3.66379706]
[1772725381902,11.28993688,89.55,89.518,3.66379706]
[1772725382102,39.08038275,89.559,89.509,3.66379706]
[1772725382679,11.16582364,89.559,89.509,3.66379706]
[1772725384582,4.21388838,89.57,89.511,3.66379706]
[1772725384800,4.21388838,89.56,89.511,3.66379706]
[1772725385809,4.49821152,89.57,89.511,3.66379706]
[1772725386188,5.69821152,89.57,89.511,3.66379706]
[1772725386489,4.21388838,89.56,89.513,3.66379706]
[1772725386807,39.07601959,89.569,89.513,3.66379706]
[1772725387313,4.21388838,89.55,89.513,3.66379706]
[1772725388182,4.21388838,89.56,89.513,3.66379706]
[1772725388386,39.07601959,89.569,89.513,3.66379706]
[1772725388604,39.07601959,89.569,89.514,39.10002904]
[1772725388809,39.07601959,89.569,89.515,3.66379706]
[1772725390690,1.2,89.589,89.495,89.3899824]
[1772725390691,4.21388838,89.58,89.517,3.66379706]
[1772725390890,4.21388838,89.57,89.517,3.66379706]
[1772725391402,39.06773228,89.588,89.52,3.66379706]
[1772725391595,39.06773228,89.588,89.526,3.66379706]
[1772725391786,4.21388838,89.57,89.526,3.66379706]
[1772725393707,39.07601959,89.569,89.528,3.66379706]
[1772725393911,4.21388838,89.56,89.528,3.66379706]
[1772725394608,4.21388838,89.55,89.507,3.66379706]
[1772725394802,4.21388838,89.56,89.507,3.66379706]
[1772725395690,4.21388838,89.55,89.509,3.66379706]
[1772725395912,4.21388838,89.54,89.484,14.83897921]
[1772725396090,139.8571187,89.559,89.485,3.66379706]
[1772725396091,4.21388838,89.52,89.485,3.66379706]
[1772725397438,4.21388838,89.51,89.465,3.66379706]
[1772725397593,0.28432314,89.529,89.465,3.66379706]
[1772725397594,4.21388838,89.5,89.465,3.66379706]
[1772725397897,27.92703225,89.519,89.466,3.66379706]
[1772725398100,11.16968992,89.528,89.466,3.66379706]
[1772725398306,4.21388838,89.48,89.45,0.2]
[1772725398521,4.21388838,89.46,89.45,0.2]
[1772725398694,4.21388838,89.47,89.437,3.66379706]
[1772725398899,4.21388838,89.46,89.437,3.66379706]
[1772725399106,4.21388838,89.46,89.428,3.66379706]
[1772725399314,4.21388838,89.46,89.418,5.83278615]
[1772725399315,4.21388838,89.45,89.418,9.49658321]
[1772725399523,4.21388838,89.43,89.417,0.70596195]
[1772725399703,4.21388838,89.42,89.39,3.86379706]
[1772725399902,11.18330556,89.419,89.39,15.05066626]
[1772725400101,27.95393419,89.433,89.391,3.66379706]
[1772725400102,4.21388838,89.42,89.391,3.66379706]
[1772725400413,15.39587922,89.43,89.391,3.66379706]
[1772725400610,11.17866742,89.457,89.395,3.66379706]
[1772725400817,11.17647557,89.474,89.404,0.28432314]
[1772725401000,11.32068402,89.48,89.419,3.66379706]
[1772725401001,11.17568421,89.48,89.419,3.66379706]
[1772725401195,11.17568421,89.48,89.425,3.66379706]
[1772725401402,27.9326137,89.502,89.429,3.66379706]
[1772725401701,11.17206091,89.509,89.435,3.66379706]
[1772725401901,11.17206091,89.509,89.434,0.28432314]
[1772725401902,11.1708129,89.519,89.446,3.66379706]
[1772725402102,11.1708129,89.519,89.441,0.28432314]
[1772725402103,11.16544963,89.562,89.457,0.28432314]
[1772725402429,11.32068402,89.53,89.476,3.66379706]
[1772725402628,11.32068402,89.52,89.476,3.66379706]
[1772725402996,11.32068402,89.53,89.476,3.66379706]
[1772725403714,11.32068402,89.54,89.476,3.66379706]
[1772725403916,11.16831771,89.539,89.478,3.66379706]
[1772725404330,39.089112,89.539,89.478,3.66379706]
[1772725405105,11.32068402,89.53,89.478,3.66379706]
[1772725405408,11.32068402,89.5,89.465,3.66379706]
[1772725406122,11.17330919,89.499,89.466,3.66379706]
[1772725406519,39.10658218,89.499,89.466,3.66379706]
[1772725406701,11.32068402,89.49,89.454,3.66379706]
[1772725407309,11.32068402,89.49,89.454,14.84272701]
[1772725407916,11.32068402,89.49,89.426,0.28432314]
[1772725407917,11.17206091,89.509,89.456,11.17868002]
[1772725408117,11.17206091,89.509,89.457,3.66379706]
[1772725408327,39.10221318,89.509,89.457,3.66379706]
[1772725409308,11.32068402,89.5,89.457,3.66379706]
[1772725410029,11.17330919,89.499,89.459,3.66379706]
[1772725410631,11.32068402,89.49,89.42,3.66379706]
[1772725410936,39.10658218,89.499,89.436,3.66379706]
[1772725411810,11.32068402,89.49,89.436,3.66379706]
[1772725412011,11.32068402,89.48,89.438,3.66379706]
[1772725412332,11.32068402,89.47,89.432,11.18158237]
[1772725412533,11.32068402,89.47,89.433,3.66379706]
[1772725413226,11.32068402,89.45,89.42,3.66379706]
[1772725413432,11.32068402,89.45,89.402,3.66379706]
[1772725413641,11.32068402,89.44,89.386,3.66379706]
[1772725413814,11.32068402,89.43,89.389,14.85082908]
[1772725414013,39.13719262,89.429,89.389,14.85082908]
[1772725414324,11.32068402,89.41,89.363,3.66379706]
[1772725414517,11.18205503,89.429,89.374,3.66379706]
[1772725414735,11.18205503,89.429,89.376,3.66379706]
[1772725414919,39.13719262,89.429,89.376,3.66379706]
[1772725415116,11.32068402,89.42,89.376,3.66379706]
[1772725416050,39.14156946,89.419,89.378,3.66379706]
[1772725416341,11.32068402,89.41,89.367,3.66379706]
[1772725416824,11.32068402,89.41,89.369,11.18946855]
[1772725417021,11.32068402,89.4,89.367,3.66379706]
[1772725417335,11.32068402,89.41,89.368,11.18962686]
[1772725417549,11.32068402,89.41,89.373,3.66379706]
[1772725417721,39.14156946,89.419,89.373,3.66379706]
[1772725418444,39.14156946,89.419,89.375,3.66379706]
[1772725418742,11.18330556,89.419,89.375,3.66379706]
[1772725419039,39.13719262,89.429,89.375,3.66379706]
[1772725419780,44.70304363,89.48,89.381,3.66379706]
[1772725419945,39.11532314,89.479,89.385,3.66379706]
[1772725420117,11.32068402,89.47,89.395,3.66379706]
[1772725420323,11.17705573,89.469,89.4,3.9481202]
[1772725420531,27.93951653,89.479,89.4,3.9481202]
[1772725420532,11.45975507,89.482,89.4,3.9481202]
[1772725420851,11.32068402,89.47,89.4,3.9481202]
[1772725421146,11.32068402,89.46,89.4,3.9481202]
[1772725421521,11.32068402,89.47,89.4,3.9481202]
[1772725421740,11.32068402,89.48,89.4,3.9481202]
[1772725421966,11.32068402,89.47,89.4,3.9481202]
[1772725422825,11.17705573,89.469,89.402,3.9481202]
[1772725423027,11.32068402,89.45,89.402,3.66379706]
[1772725423817,11.32068402,89.44,89.402,3.66379706]
[1772725424940,11.18080479,89.439,89.402,3.66379706]
[1772725425120,11.18080479,89.439,89.404,3.66379706]
[1772725425631,11.32068402,89.45,89.404,3.66379706]
[1772725426640,11.32068402,89.44,89.404,3.66379706]
[1772725427020,11.18080479,89.439,89.404,3.66379706]
[1772725427218,11.18080479,89.439,89.406,3.66379706]
[1772725427622,39.13281677,89.439,89.4,11.18562743]
[1772725427839,39.13281677,89.439,89.376,0.28432314]
[1772725427840,39.13281677,89.439,89.401,3.66379706]
[1772725428424,11.32068402,89.43,89.401,14.84935426]
[1772725428828,11.32068402,89.43,89.401,3.66379706]
[1772725429038,11.18205503,89.429,89.401,3.66379706]
[1772725429233,11.1809298,89.438,89.403,3.66379706]
[1772725429831,39.11969507,89.469,89.403,3.66379706]
[1772725430050,11.32068402,89.46,89.403,3.66379706]
[1772725430446,11.32068402,89.45,89.403,3.66379706]
[1772725431731,11.17955483,89.449,89.405,3.66379706]
[1772725431927,3.69383402,89.446,89.386,3.66379706]
[1772725432138,11.32068402,89.43,89.388,3.66379706]
[1772725432536,0.28432314,89.448,89.388,3.66379706]
[1772725432739,11.32068402,89.44,89.388,3.66379706]
[1772725432928,39.1284419,89.449,89.388,3.66379706]
[1772725433953,11.32068402,89.44,89.39,3.66379706]
[1772725434558,11.32068402,89.43,89.39,3.66379706]
[1772725435054,11.32068402,89.44,89.39,3.66379706]
[1772725435237,11.32068402,89.43,89.39,3.66379706]
[1772725435431,11.32068402,89.42,89.39,3.66379706]
[1772725435655,11.32068402,89.41,89.377,3.66379706]
[1772725436048,11.18455636,89.409,89.378,3.66379706]
[1772725436959,11.18330556,89.419,89.378,3.66379706]
[1772725437752,11.18205503,89.429,89.378,3.66379706]
[1772725438469,11.18205503,89.429,89.377,39.15987057]
[1772725438470,11.32082204,89.43,89.38,3.66379706]
[1772725438637,11.32082204,89.42,89.38,3.66379706]
[1772725439250,11.32082204,89.43,89.38,3.66379706]
[1772725439649,11.46512793,89.439,89.38,3.66379706]
[1772725439650,11.18080479,89.439,89.38,3.66379706]
[1772725440155,39.13281677,89.439,89.38,3.66379706]
[1772725440358,11.18080479,89.439,89.382,3.66379706]
[1772725440660,11.18080479,89.439,89.386,3.66379706]
[1772725440844,11.32082204,89.43,89.386,3.66379706]
[1772725441045,11.18080479,89.439,89.386,3.66379706]
[1772725441455,11.17955483,89.449,89.386,3.66379706]
[1772725442747,11.32082204,89.44,89.388,3.66379706]
[1772725442949,39.12865641,89.449,89.388,3.66379706]
[1772725443455,39.12865641,89.449,89.389,0.28432314]
[1772725443668,39.12865641,89.449,89.396,3.66379706]
[1772725444168,11.32082204,89.44,89.396,3.66379706]
[1772725445172,0.28432314,89.457,89.398,3.66379706]
[1772725445358,11.32082204,89.45,89.398,3.66379706]
[1772725445549,11.32082204,89.44,89.398,3.66379706]
[1772725445956,0.28432314,89.457,89.398,3.66379706]
[1772725446256,11.32082204,89.44,89.398,3.66379706]
[1772725446945,11.32082204,89.43,89.398,3.66379706]
[1772725447151,11.18205503,89.429,89.399,11.18580744]
[1772725447851,11.32082204,89.45,89.4,3.66379706]
[1772725448953,11.17955483,89.449,89.402,3.66379706]
[1772725449153,39.1284419,89.449,89.402,3.66379706]
[1772725449653,18.09253122,89.467,89.404,3.66379706]
[1772725449847,6.91516195,89.467,89.408,3.9481202]
[1772725450273,11.17743053,89.466,89.408,3.9481202]
[1772725450565,11.32082204,89.45,89.401,11.1855572]
[1772725450768,11.32082204,89.44,89.402,3.66379706]
[1772725450948,11.18080479,89.439,89.403,14.84910404]
[1772725451144,39.13281677,89.439,89.404,3.66379706]
[1772725451872,11.18080479,89.439,89.404,3.66379706]
[1772725452056,11.18063048,89.441,89.404,3.66379706]
[1772725452582,11.1784301,89.458,89.404,3.66379706]
[1772725452865,39.12450535,89.458,89.406,3.66379706]
[1772725453075,11.1784301,89.458,89.406,3.66379706]
[1772725454157,39.12100686,89.466,89.408,3.66379706]
[1772725454366,11.32082204,89.45,89.408,3.66379706]
[1772725454849,39.12100686,89.466,89.408,3.66379706]
[1772725455565,11.32082204,89.46,89.408,3.66379706]
[1772725456075,40.32100686,89.466,89.408,3.66379706]
[1772725456870,11.32082204,89.46,89.41,3.66379706]
[1772725458975,11.32082204,89.44,89.411,11.18430618]
[1772725459170,11.32082204,89.43,89.391,3.66379706]
[1772725459375,11.32082204,89.43,89.391,14.85060557]
[1772725459571,11.32082204,89.43,89.391,11.18680851]
[1772725459784,11.32082204,89.43,89.392,3.66379706]
[1772725460177,11.32082204,89.44,89.392,3.66379706]
[1772725460359,11.32082204,89.43,89.392,3.66379706]
[1772725460553,11.32082204,89.44,89.392,3.66379706]
[1772725460963,39.13281677,89.439,89.394,3.66379706]
[1772725463876,39.13281677,89.439,89.396,3.66379706]
[1772725465080,1.2,89.438,89.396,3.66379706]
[1772725466457,39.13369187,89.437,89.397,11.18605769]
[1772725466678,39.13369187,89.437,89.398,3.66379706]
[1772725466879,11.18105482,89.437,89.398,3.66379706]
[1772725467560,39.13369187,89.437,89.398,3.66379706]
[1772725468268,39.13369187,89.437,89.297,24.80429513]
[1772725468269,39.13369187,89.437,89.389,3.66379706]
[1772725468471,11.18330556,89.419,89.38,3.66379706]
[1772725468695,11.32082204,89.4,89.373,3.66379706]
[1772725468890,11.32082204,89.41,89.373,3.66379706]
[1772725469678,11.32082204,89.41,89.34,3.69383402]
[1772725469679,11.32082204,89.4,89.356,3.66379706]
[1772725469873,11.32082204,89.39,89.356,3.66379706]
[1772725470074,1.48432314,89.418,89.363,11.19021413]
[1772725470075,11.32082204,89.4,89.363,11.19021413]
[1772725470277,39.14156946,89.419,89.371,14.85310902]
[1772725470482,1.2,89.438,89.376,3.66379706]
[1772725470683,11.18069366,89.44,89.38,3.66379706]
[1772725470987,11.18069366,89.44,89.386,3.66379706]
[1772725471189,11.17997053,89.446,89.386,3.66379706]
[1772725471579,39.129795,89.446,89.386,3.66379706]
[1772725472371,11.32082204,89.44,89.386,3.66379706]
[1772725472572,11.18080479,89.439,89.388,3.66379706]
[1772725473888,39.12975426,89.446,89.39,3.66379706]
[1772725474074,11.32082204,89.44,89.39,3.66379706]
[1772725476396,39.41713991,89.439,89.39,3.66379706]
[1772725476573,11.32082204,89.42,89.39,3.66379706]
[1772725476892,40.33281677,89.439,89.391,3.66379706]
[1772725477188,39.13281677,89.439,89.391,3.66379706]
[1772725477593,11.32082204,89.43,89.391,3.66379706]
[1772725479192,39.13719262,89.429,89.391,3.66379706]
[1772725479386,39.13719262,89.429,89.393,3.66379706]
[1772725480496,11.18205503,89.429,89.393,3.66379706]
[1772725480697,11.1809298,89.438,89.393,3.66379706]
[1772725480893,39.13325431,89.438,89.393,3.66379706]
[1772725481100,39.13325431,89.438,89.358,1.11909398]
[1772725481101,39.13325431,89.438,89.395,3.66379706]
[1772725483976,39.13325431,89.438,89.397,3.66379706]
[1772725484186,11.32082204,89.43,89.383,3.66379706]
[1772725484694,39.13325431,89.438,89.383,3.66379706]
[1772725485991,39.13325431,89.438,89.385,3.66379706]
[1772725487201,27.95232451,89.438,89.387,3.66379706]
[1772725489303,27.95232451,89.438,89.389,3.66379706]
[1772725491307,27.95232451,89.438,89.391,3.66379706]
[1772725491695,11.18080479,89.439,89.391,3.66379706]
[1772725492109,39.13281677,89.439,89.391,3.66379706]
[1772725492491,27.946187,89.458,89.393,3.66379706]
[1772725492686,27.946187,89.458,89.398,0.28432314]
[1772725493005,27.946187,89.458,89.405,3.66379706]
[1772725493006,4.2254924,89.45,89.405,3.66379706]
[1772725493312,4.2254924,89.44,89.405,3.66379706]
[1772725494008,4.2254924,89.44,89.376,0.28432314]
[1772725494009,39.1284419,89.449,89.407,3.66379706]
[1772725495306,39.1284419,89.449,89.408,11.18468146]
[1772725495605,39.1284419,89.449,89.407,3.66379706]
[1772725495914,4.2254924,89.44,89.407,3.66379706]
[1772725496202,39.1284419,89.449,89.409,3.66379706]
[1772725496511,4.2254924,89.44,89.409,3.66379706]
[1772725497314,39.1284419,89.449,89.409,3.66379706]
[1772725497812,39.1284419,89.449,89.41,14.84822833]
[1772725498217,1.2,89.448,89.411,3.66379706]
[1772725498596,13.20553545,89.49,89.411,3.66379706]
[1772725498597,4.2254924,89.47,89.411,3.66379706]
[1772725498803,3.69383402,89.464,89.411,3.66379706]
[1772725499710,4.2254924,89.46,89.411,3.66379706]
[1772725500087,11.17830514,89.459,89.412,39.14463382]
[1772725500286,39.124068,89.459,89.413,3.66379706]
[1772725500898,11.17830514,89.459,89.413,3.66379706]
[1772725501092,39.124068,89.459,89.413,3.66379706]
[1772725501486,44.68831756,89.509,89.415,3.66379706]
[1772725501687,11.17524819,89.484,89.418,0.28432314]
[1772725501891,4.22399461,89.48,89.434,0.14216157]
[1772725502197,4.22399461,89.48,89.426,0.28432314]
[1772725502198,4.22399461,89.44,89.405,11.18505676]
[1772725502514,39.1284419,89.449,89.406,3.66379706]
[1772725502690,11.17955483,89.449,89.406,3.66379706]
[1772725503611,11.17718066,89.468,89.416,3.66379706]
[1772725503811,4.22399461,89.49,89.422,3.66379706]
[1772725504109,4.22399461,89.52,89.446,3.66379706]
[1772725504110,27.9338152,89.498,89.446,3.66379706]
[1772725504316,11.17568171,89.48,89.446,3.66379706]
[1772725504492,15.39967632,89.48,89.446,3.66379706]
[1772725504692,11.17568171,89.48,89.446,3.66379706]
[1772725504912,3.69383402,89.51,89.446,3.66379706]
[1772725505214,4.22399461,89.52,89.455,3.66379706]
[1772725505400,11.16956516,89.529,89.455,3.66379706]
[1772725505401,4.22399461,89.51,89.455,3.66379706]
[1772725505593,4.22399461,89.52,89.455,3.66379706]
[1772725506315,4.22399461,89.52,89.438,139.76162256]
[1772725506316,4.32399461,89.53,89.462,3.9481202]
[1772725506498,4.22399461,89.52,89.462,3.9481202]
[1772725506818,4.22399461,89.52,89.462,3.66379706]
[1772725507219,0.1,89.53,89.465,0.14216157]
[1772725507420,0.1,89.53,89.473,4.82477569]
[1772725507626,0.1,89.53,89.484,3.66379706]
[1772725507918,0.1,89.53,89.486,3.66379706]
[1772725508290,0.1,89.53,89.488,3.66379706]
[1772725509209,11.39195373,89.53,89.478,3.66379706]
[1772725509525,11.29195373,89.52,89.478,3.66379706]
[1772725509711,11.39195373,89.53,89.478,3.66379706]
[1772725510023,0.1,89.53,89.478,3.66379706]
[1772725510198,0.1,89.53,89.482,3.9481202]
[1772725510594,0.1,89.54,89.482,3.9481202]
[1772725510812,11.16831771,89.539,89.482,3.9481202]
[1772725512419,39.089112,89.539,89.484,3.8981202]
[1772725512927,39.089112,89.539,89.484,3.61379706]
[1772725513596,11.29195373,89.53,89.484,3.61379706]
[1772725514402,39.09347808,89.529,89.486,3.61379706]
[1772725515015,11.29195373,89.52,89.486,3.61379706]
[1772725515221,11.29195373,89.52,89.48,14.78944962]
[1772725515516,39.09347808,89.529,89.481,3.61379706]
[1772725515718,27.92091577,89.539,89.483,3.61379706]
[1772725515910,11.29195373,89.53,89.485,3.61379706]
[1772725516116,39.08954856,89.538,89.485,3.61379706]
[1772725516506,39.08954856,89.538,89.487,3.61379706]
[1772725516700,11.29195373,89.53,89.487,3.61379706]
[1772725516902,39.08954856,89.538,89.487,3.61379706]
[1772725517347,11.29195373,89.53,89.487,3.61379706]
[1772725517709,11.16844244,89.538,89.487,3.61379706]
[1772725517909,0.1,89.54,89.495,3.61379706]
[1772725517910,11.16831771,89.539,89.495,3.61379706]
[1772725518217,0.1,89.54,89.495,3.61379706]
[1772725518518,0.1,89.54,89.497,3.61379706]
[1772725518899,11.39195373,89.54,89.497,3.61379706]
[1772725520105,11.39195373,89.54,89.477,3.61379706]
[1772725520423,11.39195373,89.54,89.485,3.61379706]
[1772725520424,0.1,89.54,89.485,3.61379706]
[1772725520619,0.1,89.54,89.487,3.61379706]
[1772725521309,0.1,89.54,89.489,3.61379706]
[1772725521515,0.1,89.54,89.497,3.61379706]
[1772725521719,11.16569897,89.56,89.505,3.61379706]
[1772725521914,50.37190013,89.56,89.505,3.61379706]
[1772725522103,39.0799464,89.56,89.505,3.61379706]
[1772725522509,27.91424743,89.56,89.506,39.10352377]
[1772725522709,39.20620116,89.56,89.507,3.61379706]
[1772725524128,27.91424743,89.56,89.507,3.61379706]
[1772725524513,0.1,89.57,89.511,39.10133949]
[1772725524714,11.39195373,89.57,89.516,3.61379706]
[1772725524928,0.1,89.57,89.516,3.61379706]
[1772725525130,0.1,89.57,89.525,0.28432314]
[1772725525321,0.1,89.57,89.526,3.61379706]
[1772725525528,11.39195373,89.57,89.526,3.61379706]
[1772725525714,0.1,89.57,89.526,3.61379706]
[1772725526233,11.39195373,89.57,89.526,3.61379706]
[1772725526611,11.39195373,89.57,89.511,39.10133949]
[1772725526612,11.16457702,89.569,89.528,3.61379706]
[1772725527614,0.1,89.57,89.528,3.61379706]
[1772725528248,0.1,89.57,89.536,3.61379706]
[1772725528419,11.16332728,89.58,89.537,3.61379706]
[1772725528822,39.06467994,89.595,89.539,3.61379706]
[1772725529017,11.16133712,89.595,89.545,3.61379706]
[1772725529223,4.21107261,89.59,89.545,3.61379706]
[1772725530019,39.06467994,89.595,89.545,3.61379706]
[1772725530219,4.21107261,89.59,89.545,3.61379706]
[1772725530419,4.21107261,89.58,89.545,3.61379706]
[1772725530617,3.69383402,89.592,89.533,3.61379706]
[1772725530832,39.07601959,89.569,89.53,34.78318202]
[1772725531032,4.21107261,89.56,89.531,3.61379706]
[1772725531520,4.21107261,89.56,89.487,3.61379706]
[1772725531748,4.21107261,89.53,89.487,3.61379706]
[1772725532041,4.21107261,89.54,89.487,3.61379706]
[1772725532244,4.21107261,89.55,89.493,3.61379706]
[1772725532443,4.21107261,89.54,89.495,3.61379706]
[1772725532742,4.21107261,89.56,89.486,39.11226336]
[1772725532743,4.21107261,89.53,89.486,11.17493239]
[1772725533043,4.21107261,89.53,89.487,3.61379706]
[1772725533235,11.16719524,89.548,89.487,3.61379706]
[1772725533434,11.16719524,89.548,89.49,0.28432314]
[1772725533624,11.16719524,89.548,89.495,3.61379706]
[1772725534940,39.08062203,89.559,89.499,3.61379706]
[1772725535118,11.16582364,89.559,89.509,3.61379706]
[1772725535326,11.16582364,89.559,89.515,3.61379706]
[1772725536522,39.08038275,89.559,89.515,3.61379706]
[1772725536724,4.21107261,89.55,89.515,3.61379706]
[1772725536924,4.21107261,89.54,89.496,11.17368374]
[1772725537152,4.21107261,89.53,89.491,3.61379706]
[1772725537450,0.28432314,89.548,89.488,11.1746452]
[1772725537664,4.21107261,89.52,89.488,11.1746452]
[1772725539886,11.16956516,89.529,89.491,3.61379706]
[1772725540362,39.09347808,89.529,89.481,3.61379706]
[1772725540532,11.29843073,89.52,89.481,3.61379706]
[1772725540849,11.16956516,89.529,89.481,3.61379706]
[1772725541032,11.29843073,89.51,89.481,3.61379706]
[1772725541233,11.29843073,89.51,89.461,0.14216157]
[1772725541428,39.09784515,89.519,89.462,3.61379706]
[1772725541629,11.29843073,89.51,89.466,3.61379706]
[1772725541833,39.09784515,89.519,89.466,3.61379706]
[1772725542049,11.29843073,89.51,89.466,3.61379706]
[1772725542244,39.09784515,89.519,89.457,14.79235211]
[1772725542556,39.38216829,89.519,89.457,11.17855505]
[1772725542732,11.29843073,89.51,89.458,3.61379706]
[1772725543042,11.17206091,89.509,89.459,39.124068]
[1772725543247,11.17206091,89.509,89.46,3.61379706]
[1772725543444,39.10221318,89.509,89.46,3.61379706]
[1772725544050,11.29843073,89.5,89.46,3.61379706]
[1772725544354,39.10221318,89.509,89.46,3.61379706]
[1772725544535,11.29843073,89.5,89.46,3.61379706]
[1772725544874,11.17206091,89.509,89.46,3.61379706]
[1772725545649,11.17206091,89.509,89.462,3.61379706]
[1772725545940,57.04140387,89.54,89.471,3.61379706]
[1772725545941,11.29843073,89.54,89.471,3.61379706]
[1772725546134,39.07951005,89.561,89.485,3.61379706]
[1772725546334,11.29843073,89.54,89.495,3.61379706]
[1772725546529,11.29843073,89.55,89.495,3.61379706]
[1772725547755,11.16707054,89.549,89.497,3.61379706]
[1772725547956,11.29843073,89.54,89.496,11.17368374]
[1772725548153,11.29843073,89.51,89.469,3.61379706]
[1772725548542,11.29843073,89.52,89.469,3.61379706]
[1772725548738,11.29843073,89.53,89.469,3.61379706]
[1772725548945,11.29843073,89.53,89.472,0.28432314]
[1772725549136,11.29843073,89.53,89.475,3.61379706]